[Event "Live Chess"]
[Site "Chess.com"]
[Date "2023.05.21"]
[Round "-"]
[White "GMHarry-youtube"]
[Black "wot-not"]
[Result "1/2-1/2"]
[WhiteElo "2016"]
[BlackElo "1549"]
[TimeControl "300"]
[EndTime "16:50:13 PDT"]
[Termination "Game drawn - insufficient material"]

1. e4 {[%clk 0:04:58.3]} 1... e6 {[%clk 0:04:46.5]} 2. d4 {[%clk 0:04:57]} 2...
d5 {[%clk 0:04:06]} 3. e5 {[%clk 0:04:54.2]} 3... c5 {[%clk 0:03:52.8]} 4. c3
{[%clk 0:04:49.4]} 4... cxd4 {[%clk 0:03:45.7]} 5. cxd4 {[%clk 0:04:46.9]} 5...
Nc6 {[%clk 0:03:40.5]} 6. Nf3 {[%clk 0:04:43.7]} 6... Nge7 {[%clk 0:03:35.7]} 7.
Nbd2 {[%clk 0:04:38.8]} 7... Nf5 {[%clk 0:03:30.5]} 8. Nb3 {[%clk 0:04:37.5]}
8... Be7 {[%clk 0:03:27.2]} 9. g4 {[%clk 0:04:36.1]} 9... Nh6 {[%clk 0:03:23.9]}
10. h3 {[%clk 0:04:33.8]} 10... Bd7 {[%clk 0:03:18.3]} 11. Bxh6 {[%clk
0:04:31.3]} 11... gxh6 {[%clk 0:03:17]} 12. Qd2 {[%clk 0:04:29.9]} 12... Bg5
{[%clk 0:03:13]} 13. Nxg5 {[%clk 0:04:28.3]} 13... Qxg5 {[%clk 0:03:04.2]} 14.
Qxg5 {[%clk 0:04:26.2]} 14... hxg5 {[%clk 0:03:03.4]} 15. Kd2 {[%clk 0:04:20.5]}
15... h5 {[%clk 0:02:54.1]} 16. Be2 {[%clk 0:04:18.3]} 16... hxg4 {[%clk
0:02:49.7]} 17. hxg4 {[%clk 0:04:18.2]} 17... Rxh1 {[%clk 0:02:45.8]} 18. Rxh1
{[%clk 0:04:18.1]} 18... O-O-O {[%clk 0:02:44.7]} 19. Rh7 {[%clk 0:04:15.9]}
19... a5 {[%clk 0:02:34.3]} 20. Rxf7 {[%clk 0:04:13.6]} 20... a4 {[%clk
0:02:33.6]} 21. Nc5 {[%clk 0:04:12.3]} 21... Nxd4 {[%clk 0:02:29.5]} 22. Nxd7
{[%clk 0:04:05.1]} 22... Rxd7 {[%clk 0:02:28.3]} 23. Rxd7 {[%clk 0:04:04.1]}
23... Kxd7 {[%clk 0:02:26.3]} 24. Bd1 {[%clk 0:03:59.4]} 24... b5 {[%clk
0:02:20.6]} 25. Ke3 {[%clk 0:03:56.7]} 25... Nc6 {[%clk 0:02:16.9]} 26. f4
{[%clk 0:03:55.4]} 26... gxf4+ {[%clk 0:02:14.6]} 27. Kxf4 {[%clk 0:03:55.3]}
27... Nb4 {[%clk 0:02:06.4]} 28. Be2 {[%clk 0:03:52.9]} 28... Nxa2 {[%clk
0:02:03.4]} 29. Bxb5+ {[%clk 0:03:51.5]} 29... Ke7 {[%clk 0:01:59.8]} 30. Bxa4
{[%clk 0:03:50.7]} 30... Nc1 {[%clk 0:01:58.4]} 31. b3 {[%clk 0:03:46.5]} 31...
Nd3+ {[%clk 0:01:57.1]} 32. Kg5 {[%clk 0:03:45]} 32... Nc5 {[%clk 0:01:56.3]}
33. Kh6 {[%clk 0:03:43]} 33... Kf7 {[%clk 0:01:52.3]} 34. g5 {[%clk 0:03:39.1]}
34... Nd3 {[%clk 0:01:51.4]} 35. Kh7 {[%clk 0:03:36.3]} 35... Nxe5 {[%clk
0:01:50.4]} 36. b4 {[%clk 0:03:33.2]} 36... Ng6 {[%clk 0:01:47.8]} 37. b5 {[%clk
0:03:31.5]} 37... Nf8+ {[%clk 0:01:46.1]} 38. Kh6 {[%clk 0:03:30.5]} 38... Nd7
{[%clk 0:01:45.1]} 39. Bc2 {[%clk 0:03:23]} 39... d4 {[%clk 0:01:42.9]} 40. Bh7
{[%clk 0:03:21.8]} 40... e5 {[%clk 0:01:35.7]} 41. g6+ {[%clk 0:03:20.9]} 41...
Ke7 {[%clk 0:01:32.4]} 42. g7 {[%clk 0:03:20.8]} 42... Nf6 {[%clk 0:01:31.7]}
43. Kg6 {[%clk 0:03:18.5]} 43... d3 {[%clk 0:01:30.4]} 44. g8=Q {[%clk
0:03:14.2]} 44... Nxg8 {[%clk 0:01:29]} 45. Bxg8 {[%clk 0:03:14.1]} 45... d2
{[%clk 0:01:28.1]} 46. Bb3 {[%clk 0:03:13.7]} 46... e4 {[%clk 0:01:27.3]} 47.
Bd1 {[%clk 0:03:10.1]} 47... e3 {[%clk 0:01:26.2]} 48. Kf5 {[%clk 0:03:09.4]}
48... Kd6 {[%clk 0:01:25.8]} 49. Ba4 {[%clk 0:02:57.7]} 49... Kc5 {[%clk
0:01:24.7]} 50. Bd1 {[%clk 0:02:51.7]} 50... Kxb5 {[%clk 0:01:23.3]} 51. Ke4
{[%clk 0:02:51.3]} 51... Kc4 {[%clk 0:01:22.7]} 52. Kxe3 {[%clk 0:02:50.3]}
52... Kc3 {[%clk 0:01:22.5]} 53. Ke2 {[%clk 0:02:48.8]} 53... Kb2 {[%clk
0:01:21.2]} 54. Ba4 {[%clk 0:02:45.2]} 54... d1=Q+ {[%clk 0:01:10]} 55. Bxd1
{[%clk 0:02:42.1]} 1/2-1/2

[Event "Live Chess"]
[Site "Chess.com"]
[Date "2023.05.21"]
[Round "-"]
[White "elvenstar"]
[Black "alanmike75"]
[Result "0-1"]
[WhiteElo "1556"]
[BlackElo "1551"]
[TimeControl "300"]
[EndTime "16:50:27 PDT"]
[Termination "alanmike75 won on time"]

1. e4 {[%clk 0:04:57.6]} 1... e5 {[%clk 0:04:58.9]} 2. Nf3 {[%clk 0:04:56]} 2...
d6 {[%clk 0:04:57.7]} 3. d4 {[%clk 0:04:55]} 3... exd4 {[%clk 0:04:56.6]} 4. Bc4
{[%clk 0:04:53.8]} 4... Be7 {[%clk 0:04:54.2]} 5. O-O {[%clk 0:04:52.5]} 5...
Nf6 {[%clk 0:04:53.1]} 6. Re1 {[%clk 0:04:47.5]} 6... O-O {[%clk 0:04:51.8]} 7.
Nxd4 {[%clk 0:04:46.4]} 7... c6 {[%clk 0:04:46.8]} 8. Bg5 {[%clk 0:04:44.7]}
8... Nbd7 {[%clk 0:04:41.3]} 9. Nc3 {[%clk 0:04:42.1]} 9... Ne5 {[%clk
0:04:39.6]} 10. Bb3 {[%clk 0:04:37.9]} 10... h6 {[%clk 0:04:31.4]} 11. Bh4
{[%clk 0:04:34.3]} 11... a6 {[%clk 0:04:23.2]} 12. Kh1 {[%clk 0:04:32.4]} 12...
c5 {[%clk 0:04:18.4]} 13. Nf5 {[%clk 0:04:23.8]} 13... c4 {[%clk 0:04:13.2]} 14.
Nxe7+ {[%clk 0:04:12.2]} 14... Qxe7 {[%clk 0:04:11.7]} 15. Nd5 {[%clk
0:04:05.7]} 15... Qd8 {[%clk 0:04:09.8]} 16. Nxf6+ {[%clk 0:03:49.7]} 16... gxf6
{[%clk 0:04:08.1]} 17. Qh5 {[%clk 0:03:35.3]} 17... Kg7 {[%clk 0:03:57.3]} 18.
Re3 {[%clk 0:03:31.4]} 18... cxb3 {[%clk 0:03:53.8]} 19. Rg3+ {[%clk 0:03:24.6]}
19... Kh7 {[%clk 0:03:48]} 20. axb3 {[%clk 0:03:07.8]} 20... Ng6 {[%clk
0:03:39.8]} 21. Rh3 {[%clk 0:02:55.3]} 21... Rh8 {[%clk 0:03:24.5]} 22. Rf3
{[%clk 0:02:51.7]} 22... Nxh4 {[%clk 0:03:21.2]} 23. Qxh4 {[%clk 0:02:48.5]}
23... Kg7 {[%clk 0:03:14.2]} 24. Ra5 {[%clk 0:02:15.4]} 24... Be6 {[%clk
0:03:07.1]} 25. Rh5 {[%clk 0:02:01.7]} 25... Kf8 {[%clk 0:03:04.6]} 26. Rxf6
{[%clk 0:01:48]} 26... Ke8 {[%clk 0:03:02.6]} 27. Qf4 {[%clk 0:01:32.3]} 27...
Kd7 {[%clk 0:02:57.8]} 28. Rfxh6 {[%clk 0:00:22.9]} 28... Rxh6 {[%clk
0:02:55.6]} 29. Rxh6 {[%clk 0:00:19.9]} 29... Qe7 {[%clk 0:02:53.7]} 30. h3
{[%clk 0:00:17.5]} 30... Rg8 {[%clk 0:02:49.8]} 31. Rf6 {[%clk 0:00:11.7]} 31...
Rg6 {[%clk 0:02:45.6]} 32. Rxg6 {[%clk 0:00:07.9]} 32... fxg6 {[%clk 0:02:44.1]}
33. Kh2 {[%clk 0:00:06.8]} 33... Qf7 {[%clk 0:02:08.4]} 34. Qe3 {[%clk
0:00:04.9]} 34... Qf6 {[%clk 0:02:01.5]} 35. f4 {[%clk 0:00:03.5]} 35... Qxb2
{[%clk 0:01:57.5]} 36. Qb6 {[%clk 0:00:01.1]} 36... Qxc2 {[%clk 0:01:41.1]} 37.
Qxb7+ {[%clk 0:00:00.2]} 37... Ke8 {[%clk 0:01:38.1]} 0-1

[Event "Live Chess"]
[Site "Chess.com"]
[Date "2023.05.21"]
[Round "-"]
[White "xx_blindpuffin_xx"]
[Black "LL220284LL"]
[Result "1-0"]
[WhiteElo "2209"]
[BlackElo "2355"]
[TimeControl "300"]
[EndTime "16:50:31 PDT"]
[Termination "xx_blindpuffin_xx won by resignation"]

1. d4 {[%clk 0:04:57.2]} 1... e6 {[%clk 0:04:58.1]} 2. Bf4 {[%clk 0:04:56.6]}
2... Nf6 {[%clk 0:04:56.7]} 3. e3 {[%clk 0:04:53.9]} 3... c5 {[%clk 0:04:55.7]}
4. c3 {[%clk 0:04:52.2]} 4... b6 {[%clk 0:04:54.5]} 5. Nf3 {[%clk 0:04:49]} 5...
Bb7 {[%clk 0:04:53.6]} 6. h3 {[%clk 0:04:48.6]} 6... Be7 {[%clk 0:04:52]} 7. Be2
{[%clk 0:04:46.6]} 7... O-O {[%clk 0:04:51.7]} 8. O-O {[%clk 0:04:45]} 8... Nc6
{[%clk 0:04:51.4]} 9. Nbd2 {[%clk 0:04:44.3]} 9... Rc8 {[%clk 0:04:50]} 10. a4
{[%clk 0:04:33.2]} 10... d5 {[%clk 0:04:48.9]} 11. Ne5 {[%clk 0:04:29.3]} 11...
Nxe5 {[%clk 0:04:46.9]} 12. Bxe5 {[%clk 0:04:29.2]} 12... Bd6 {[%clk 0:04:43.7]}
13. Bxd6 {[%clk 0:03:59.9]} 13... Qxd6 {[%clk 0:04:43.6]} 14. a5 {[%clk
0:03:58.8]} 14... e5 {[%clk 0:04:38.6]} 15. axb6 {[%clk 0:03:49]} 15... axb6
{[%clk 0:04:35.1]} 16. Nf3 {[%clk 0:03:38.2]} 16... e4 {[%clk 0:04:29.1]} 17.
Ne5 {[%clk 0:03:37.2]} 17... Ra8 {[%clk 0:04:25.9]} 18. Qd2 {[%clk 0:03:20.7]}
18... Nd7 {[%clk 0:04:20.8]} 19. Nxd7 {[%clk 0:03:18.6]} 19... Qxd7 {[%clk
0:04:20.7]} 20. dxc5 {[%clk 0:03:16.2]} 20... bxc5 {[%clk 0:04:18.7]} 21. b4
{[%clk 0:03:14.5]} 21... Qc7 {[%clk 0:04:06.5]} 22. Rfc1 {[%clk 0:02:59.3]}
22... Qb6 {[%clk 0:03:58.4]} 23. Rab1 {[%clk 0:02:57]} 23... Rfb8 {[%clk
0:03:39.3]} 24. c4 {[%clk 0:02:39.4]} 24... dxc4 {[%clk 0:03:31.1]} 25. bxc5
{[%clk 0:02:31.2]} 25... Qxc5 {[%clk 0:03:28.4]} 26. Bxc4 {[%clk 0:02:29]} 26...
Qf8 {[%clk 0:03:24.9]} 27. Qd7 {[%clk 0:02:11.2]} 27... Bc8 {[%clk 0:03:14.9]}
28. Qc7 {[%clk 0:02:08.2]} 28... Rxb1 {[%clk 0:03:06.3]} 29. Rxb1 {[%clk
0:02:08.1]} 29... g6 {[%clk 0:02:57.4]} 30. Bd5 {[%clk 0:02:03.7]} 1-0

[Event "Live Chess"]
[Site "Chess.com"]
[Date "2023.05.21"]
[Round "-"]
[White "JoshMcK"]
[Black "HoarseyHorsey"]
[Result "1-0"]
[WhiteElo "1527"]
[BlackElo "1431"]
[TimeControl "300"]
[EndTime "16:50:39 PDT"]
[Termination "JoshMcK won by resignation"]

1. e4 {[%clk 0:04:59]} 1... c5 {[%clk 0:04:59.1]} 2. c3 {[%clk 0:04:57.9]} 2...
e6 {[%clk 0:04:57.8]} 3. Nf3 {[%clk 0:04:56.7]} 3... Nc6 {[%clk 0:04:56.4]} 4.
d4 {[%clk 0:04:54.4]} 4... d5 {[%clk 0:04:55.5]} 5. exd5 {[%clk 0:04:51.3]} 5...
exd5 {[%clk 0:04:55.4]} 6. dxc5 {[%clk 0:04:50.6]} 6... Bxc5 {[%clk 0:04:53.5]}
7. Bb5 {[%clk 0:04:48.6]} 7... Nf6 {[%clk 0:04:51.3]} 8. Qe2+ {[%clk 0:04:46.9]}
8... Be6 {[%clk 0:04:49.7]} 9. Ne5 {[%clk 0:04:43.9]} 9... Qc7 {[%clk
0:04:46.7]} 10. O-O {[%clk 0:04:40.1]} 10... O-O {[%clk 0:04:45.2]} 11. Nxc6
{[%clk 0:04:38.8]} 11... bxc6 {[%clk 0:04:44.6]} 12. Bd3 {[%clk 0:04:38.3]}
12... Rfe8 {[%clk 0:04:42.8]} 13. Qd1 {[%clk 0:04:36.5]} 13... Bg4 {[%clk
0:04:41.6]} 14. Qc2 {[%clk 0:04:33.9]} 14... Re7 {[%clk 0:04:32.4]} 15. h3
{[%clk 0:04:30.7]} 15... Bh5 {[%clk 0:04:31]} 16. Nd2 {[%clk 0:04:28.2]} 16...
Rae8 {[%clk 0:04:26]} 17. Nb3 {[%clk 0:04:24.7]} 17... Bb6 {[%clk 0:04:23.7]}
18. Bg5 {[%clk 0:04:22.7]} 18... Bg6 {[%clk 0:04:21.4]} 19. Bxg6 {[%clk
0:04:18]} 19... hxg6 {[%clk 0:04:16.3]} 20. Bxf6 {[%clk 0:04:17.2]} 20... gxf6
{[%clk 0:04:16.2]} 21. Qd3 {[%clk 0:04:07]} 21... Qf4 {[%clk 0:04:07.4]} 22. Nd4
{[%clk 0:04:00.9]} 22... Bxd4 {[%clk 0:04:05]} 23. Qxd4 {[%clk 0:04:00]} 23...
Qxd4 {[%clk 0:04:02.9]} 24. cxd4 {[%clk 0:03:59.9]} 24... Re2 {[%clk 0:04:02]}
25. b3 {[%clk 0:03:58.3]} 25... Rd2 {[%clk 0:03:56.5]} 26. Rfd1 {[%clk
0:03:55.9]} 26... Ree2 {[%clk 0:03:53.6]} 27. Rac1 {[%clk 0:03:53.6]} 27... Rxf2
{[%clk 0:03:49.8]} 28. Rxd2 {[%clk 0:03:52]} 28... Rxd2 {[%clk 0:03:49.7]} 29.
Rxc6 {[%clk 0:03:50.4]} 29... Rxd4 {[%clk 0:03:49]} 30. Rxf6 {[%clk 0:03:49.3]}
30... Kf8 {[%clk 0:03:39.3]} 31. Ra6 {[%clk 0:03:47.3]} 31... Rd2 {[%clk
0:03:36.1]} 32. Rxa7 {[%clk 0:03:46.3]} 32... d4 {[%clk 0:03:35.5]} 33. Rd7
{[%clk 0:03:44.8]} 33... Ke8 {[%clk 0:03:34.1]} 34. Rd5 {[%clk 0:03:42.9]} 34...
Ke7 {[%clk 0:03:31.6]} 35. g4 {[%clk 0:03:41.9]} 35... Ke6 {[%clk 0:03:30.9]}
36. Rd8 {[%clk 0:03:40.5]} 36... Ke5 {[%clk 0:03:25.5]} 37. h4 {[%clk
0:03:37.6]} 37... Rxa2 {[%clk 0:03:21.6]} 38. Kf1 {[%clk 0:03:35.6]} 38... Rb2
{[%clk 0:03:17.7]} 39. h5 {[%clk 0:03:33.6]} 39... gxh5 {[%clk 0:03:11.8]} 40.
gxh5 {[%clk 0:03:32.5]} 40... Rxb3 {[%clk 0:03:07.9]} 41. h6 {[%clk 0:03:28.1]}
41... Rh3 {[%clk 0:03:06.8]} 42. Rh8 {[%clk 0:03:26.4]} 42... Kf6 {[%clk
0:03:04.2]} 43. h7 {[%clk 0:03:23.2]} 43... Kg7 {[%clk 0:02:59.9]} 44. Rd8
{[%clk 0:03:22.1]} 44... Rh4 {[%clk 0:02:58.2]} 45. h8=Q+ {[%clk 0:03:12.6]}
45... Rxh8 {[%clk 0:02:56.7]} 46. Rxd4 {[%clk 0:03:12.2]} 46... Rf8 {[%clk
0:02:55.1]} 47. Rf4 {[%clk 0:03:10.6]} 47... f5 {[%clk 0:02:53.4]} 48. Ra4
{[%clk 0:03:08.9]} 48... Kf6 {[%clk 0:02:52.3]} 49. Kf2 {[%clk 0:03:07.4]} 49...
Kg5 {[%clk 0:02:51.2]} 50. Kg3 {[%clk 0:03:06]} 50... Re8 {[%clk 0:02:46.3]} 51.
Kf3 {[%clk 0:03:03.6]} 51... Rb8 {[%clk 0:02:43.8]} 52. Kf2 {[%clk 0:03:00.2]}
52... Rb3 {[%clk 0:02:34.4]} 53. Kg2 {[%clk 0:02:56.9]} 53... Re3 {[%clk
0:02:32.1]} 54. Kf2 {[%clk 0:02:55.7]} 54... f4 {[%clk 0:02:24]} 55. Ra5+ {[%clk
0:02:51.1]} 55... Kg4 {[%clk 0:02:22.7]} 56. Ra8 {[%clk 0:02:49.5]} 56... Rf3+
{[%clk 0:02:21.8]} 57. Kg1 {[%clk 0:02:48.6]} 57... Rg3+ {[%clk 0:02:11.3]} 58.
Kf2 {[%clk 0:02:47]} 58... Ra3 {[%clk 0:02:04.3]} 59. Rxa3 {[%clk 0:02:43]} 1-0

[Event "Live Chess"]
[Site "Chess.com"]
[Date "2023.05.21"]
[Round "-"]
[White "LodeshChess"]
[Black "SupremeTactician"]
[Result "0-1"]
[WhiteElo "1136"]
[BlackElo "2342"]
[TimeControl "300"]
[EndTime "16:51:05 PDT"]
[Termination "SupremeTactician won by resignation"]

1. e4 {[%clk 0:04:54.3]} 1... e5 {[%clk 0:04:58.8]} 2. Nf3 {[%clk 0:04:53.6]}
2... Nc6 {[%clk 0:04:58.5]} 3. c3 {[%clk 0:04:53.1]} 3... Bc5 {[%clk 0:04:57]}
4. d4 {[%clk 0:04:52.5]} 4... exd4 {[%clk 0:04:56.4]} 5. cxd4 {[%clk 0:04:52.2]}
5... Bb4+ {[%clk 0:04:56.2]} 6. Nc3 {[%clk 0:04:50.9]} 6... d5 {[%clk
0:04:55.8]} 7. e5 {[%clk 0:04:49.5]} 7... Bg4 {[%clk 0:04:53.9]} 8. Be2 {[%clk
0:04:48.1]} 8... Nge7 {[%clk 0:04:53.1]} 9. O-O {[%clk 0:04:47]} 9... O-O {[%clk
0:04:52.1]} 10. a3 {[%clk 0:04:45.5]} 10... Bxc3 {[%clk 0:04:51.4]} 11. bxc3
{[%clk 0:04:45]} 11... Bxf3 {[%clk 0:04:50.5]} 12. Bxf3 {[%clk 0:04:44]} 12...
Ng6 {[%clk 0:04:50]} 13. Qb3 {[%clk 0:04:39.6]} 13... Nge7 {[%clk 0:04:44.4]}
14. Qxb7 {[%clk 0:04:31.7]} 14... Rb8 {[%clk 0:04:43.7]} 15. Qa6 {[%clk
0:04:30.2]} 15... Rb6 {[%clk 0:04:43.2]} 16. Qd3 {[%clk 0:04:27]} 16... Na5
{[%clk 0:04:42.1]} 17. Bg5 {[%clk 0:04:20.4]} 17... Qd7 {[%clk 0:04:38]} 18.
Bxe7 {[%clk 0:04:18.6]} 18... Qxe7 {[%clk 0:04:37.4]} 19. Rab1 {[%clk
0:04:14.9]} 19... Nc4 {[%clk 0:04:33.8]} 20. Rxb6 {[%clk 0:04:11.8]} 20... Nxb6
{[%clk 0:04:33.1]} 21. Qb5 {[%clk 0:04:06.5]} 21... Qxa3 {[%clk 0:04:29.3]} 22.
Bxd5 {[%clk 0:04:03.8]} 22... Nxd5 {[%clk 0:04:27.7]} 23. Qxd5 {[%clk
0:04:02.2]} 23... Qxc3 {[%clk 0:04:27.4]} 24. Rb1 {[%clk 0:03:52.4]} 24... a5
{[%clk 0:04:23.7]} 25. h3 {[%clk 0:03:45.9]} 25... a4 {[%clk 0:04:22.7]} 26. e6
{[%clk 0:03:33.5]} 26... fxe6 {[%clk 0:04:19.9]} 27. Qxe6+ {[%clk 0:03:32.6]}
27... Kh8 {[%clk 0:04:19.3]} 28. d5 {[%clk 0:03:31.8]} 28... a3 {[%clk 0:04:17]}
29. Ra1 {[%clk 0:03:30.5]} 29... Qxa1+ {[%clk 0:04:15.5]} 0-1

[Event "Live Chess"]
[Site "Chess.com"]
[Date "2023.05.21"]
[Round "-"]
[White "Conradical12"]
[Black "jimwad"]
[Result "1-0"]
[WhiteElo "1583"]
[BlackElo "1207"]
[TimeControl "300"]
[EndTime "16:51:06 PDT"]
[Termination "Conradical12 won by resignation"]

1. e4 {[%clk 0:04:56.8]} 1... e5 {[%clk 0:04:58.7]} 2. Nf3 {[%clk 0:04:56.4]}
2... Nc6 {[%clk 0:04:57.6]} 3. Bc4 {[%clk 0:04:54.3]} 3... Bc5 {[%clk
0:04:56.4]} 4. b4 {[%clk 0:04:50.9]} 4... Bxb4 {[%clk 0:04:54.7]} 5. c3 {[%clk
0:04:50.4]} 5... Bc5 {[%clk 0:04:53.7]} 6. Qb3 {[%clk 0:04:49]} 6... Nh6 {[%clk
0:04:49.8]} 7. d4 {[%clk 0:04:48.1]} 7... exd4 {[%clk 0:04:48.3]} 8. Bxh6 {[%clk
0:04:47.6]} 8... O-O {[%clk 0:04:45.3]} 9. Bxg7 {[%clk 0:04:43.1]} 9... Kxg7
{[%clk 0:04:43.7]} 10. O-O {[%clk 0:04:37.6]} 10... dxc3 {[%clk 0:04:40.5]} 11.
Nxc3 {[%clk 0:04:35.9]} 11... Ne5 {[%clk 0:04:39.1]} 12. Nxe5 {[%clk 0:04:32.9]}
1-0

[Event "Live Chess"]
[Site "Chess.com"]
[Date "2023.05.21"]
[Round "-"]
[White "GMHarry-youtube"]
[Black "ExIsambard"]
[Result "1-0"]
[WhiteElo "2022"]
[BlackElo "1924"]
[TimeControl "300"]
[EndTime "16:51:20 PDT"]
[Termination "GMHarry-youtube won by resignation"]

1. e4 {[%clk 0:04:58.8]} 1... Nc6 {[%clk 0:04:58.7]} 2. Nf3 {[%clk 0:04:57.6]}
2... d5 {[%clk 0:04:57.1]} 3. exd5 {[%clk 0:04:54.4]} 3... Qxd5 {[%clk
0:04:56.5]} 4. Nc3 {[%clk 0:04:52.3]} 4... Qh5 {[%clk 0:04:55.5]} 5. d4 {[%clk
0:04:49.5]} 5... Bg4 {[%clk 0:04:53.2]} 6. Bb5 {[%clk 0:04:47.1]} 6... O-O-O
{[%clk 0:04:45.7]} 7. Be3 {[%clk 0:04:44.6]} 7... Ne5 {[%clk 0:04:41.3]} 8. Be2
{[%clk 0:04:39.7]} 8... Nf6 {[%clk 0:04:36.3]} 9. Nxe5 {[%clk 0:04:35.1]} 9...
Bxe2 {[%clk 0:04:33.8]} 10. Qxe2 {[%clk 0:04:35]} 10... Qxe2+ {[%clk 0:04:31.9]}
11. Kxe2 {[%clk 0:04:34.9]} 1-0

[Event "Live Chess"]
[Site "Chess.com"]
[Date "2023.05.21"]
[Round "-"]
[White "DerbyKnight"]
[Black "toog"]
[Result "0-1"]
[WhiteElo "1550"]
[BlackElo "2582"]
[TimeControl "300"]
[EndTime "16:51:23 PDT"]
[Termination "toog won by checkmate"]

1. e4 {[%clk 0:04:56.8]} 1... e5 {[%clk 0:04:57]} 2. d4 {[%clk 0:04:55.1]} 2...
exd4 {[%clk 0:04:56.2]} 3. c3 {[%clk 0:04:54.4]} 3... Qe7 {[%clk 0:04:52.2]} 4.
Bd3 {[%clk 0:04:48.4]} 4... Nc6 {[%clk 0:04:48.1]} 5. Nf3 {[%clk 0:04:43.1]}
5... dxc3 {[%clk 0:04:46.9]} 6. Nxc3 {[%clk 0:04:40.7]} 6... Nf6 {[%clk
0:04:46.3]} 7. O-O {[%clk 0:04:37.5]} 7... d6 {[%clk 0:04:45.4]} 8. Nd5 {[%clk
0:04:35.7]} 8... Nxd5 {[%clk 0:04:41.7]} 9. exd5 {[%clk 0:04:33.8]} 9... Ne5
{[%clk 0:04:41.6]} 10. Nxe5 {[%clk 0:04:29.7]} 10... dxe5 {[%clk 0:04:41.5]} 11.
Be3 {[%clk 0:04:07.4]} 11... g6 {[%clk 0:04:37.4]} 12. Rc1 {[%clk 0:04:01.3]}
12... b6 {[%clk 0:04:30.8]} 13. Re1 {[%clk 0:03:51.3]} 13... Bg7 {[%clk
0:04:28.7]} 14. f4 {[%clk 0:03:45.4]} 14... O-O {[%clk 0:04:25.4]} 15. f5 {[%clk
0:03:35.7]} 15... Re8 {[%clk 0:04:14]} 16. Bb5 {[%clk 0:03:24.2]} 16... Bd7
{[%clk 0:04:11.3]} 17. Bc6 {[%clk 0:03:10.5]} 17... Bxc6 {[%clk 0:04:08.1]} 18.
Rxc6 {[%clk 0:03:07.9]} 18... Rad8 {[%clk 0:04:07.5]} 19. Qf3 {[%clk 0:02:52.9]}
19... e4 {[%clk 0:04:04.8]} 20. Qf4 {[%clk 0:02:37.7]} 20... Be5 {[%clk
0:04:00]} 21. Qg4 {[%clk 0:02:34.7]} 21... Rd6 {[%clk 0:03:55.7]} 22. Bg5 {[%clk
0:02:24.7]} 22... Qd7 {[%clk 0:03:50.6]} 23. fxg6 {[%clk 0:02:14.8]} 23... Qxg4
{[%clk 0:03:47.8]} 24. gxf7+ {[%clk 0:02:07.9]} 24... Kxf7 {[%clk 0:03:46.3]}
25. Rf1+ {[%clk 0:02:06.5]} 25... Kg8 {[%clk 0:03:45.2]} 26. Rxc7 {[%clk
0:01:51.8]} 26... Rg6 {[%clk 0:03:41.8]} 27. Rff7 {[%clk 0:01:41.3]} 27... Bd4+
{[%clk 0:03:37.5]} 28. Kf1 {[%clk 0:01:32.4]} 28... Qd1# {[%clk 0:03:34.2]} 0-1

[Event "Live Chess"]
[Site "Chess.com"]
[Date "2023.05.21"]
[Round "-"]
[White "Jo1ts"]
[Black "manthanit"]
[Result "0-1"]
[WhiteElo "789"]
[BlackElo "1044"]
[TimeControl "300"]
[EndTime "16:51:24 PDT"]
[Termination "manthanit won by resignation"]

1. d4 {[%clk 0:04:56]} 1... e6 {[%clk 0:04:58.8]} 2. Bf4 {[%clk 0:04:51.5]} 2...
d5 {[%clk 0:04:57.7]} 3. Nf3 {[%clk 0:04:49.3]} 3... a6 {[%clk 0:04:56.9]} 4. e3
{[%clk 0:04:46.5]} 4... c5 {[%clk 0:04:55.9]} 5. Nbd2 {[%clk 0:04:41.7]} 5...
Qb6 {[%clk 0:04:48.7]} 6. b3 {[%clk 0:04:37.7]} 6... cxd4 {[%clk 0:04:47.2]} 7.
exd4 {[%clk 0:04:34.1]} 7... Nc6 {[%clk 0:04:44.3]} 8. Be3 {[%clk 0:04:23]} 8...
Nf6 {[%clk 0:04:39.4]} 9. Ne5 {[%clk 0:04:16.7]} 9... Nxd4 {[%clk 0:04:32.7]}
10. Bxd4 {[%clk 0:04:05.6]} 10... Qxd4 {[%clk 0:04:30.5]} 11. Nef3 {[%clk
0:04:00.6]} 11... Qb6 {[%clk 0:04:17.4]} 12. Bd3 {[%clk 0:03:53.2]} 12... Bb4
{[%clk 0:04:15.1]} 13. O-O {[%clk 0:03:49.3]} 13... Bc3 {[%clk 0:04:13.3]} 14.
Rb1 {[%clk 0:03:45.9]} 14... Bd7 {[%clk 0:04:10.9]} 15. Ne5 {[%clk 0:03:28.4]}
15... Bb5 {[%clk 0:04:07.6]} 16. Bxb5+ {[%clk 0:03:21.9]} 16... axb5 {[%clk
0:04:06.3]} 17. Ndf3 {[%clk 0:03:19.1]} 17... Qc7 {[%clk 0:03:56.2]} 18. Qd3
{[%clk 0:03:10.6]} 18... Bxe5 {[%clk 0:03:54.2]} 0-1

[Event "Live Chess"]
[Site "Chess.com"]
[Date "2023.05.21"]
[Round "-"]
[White "educatedlad"]
[Black "Doge_Dandolo"]
[Result "1-0"]
[WhiteElo "1630"]
[BlackElo "1979"]
[TimeControl "300"]
[EndTime "16:51:34 PDT"]
[Termination "educatedlad won by checkmate"]

1. e4 {[%clk 0:04:58.4]} 1... c6 {[%clk 0:04:58.7]} 2. d4 {[%clk 0:04:57.1]}
2... d5 {[%clk 0:04:58.1]} 3. e5 {[%clk 0:04:56.8]} 3... Bf5 {[%clk 0:04:56.8]}
4. h4 {[%clk 0:04:56.4]} 4... h5 {[%clk 0:04:55.6]} 5. Bd3 {[%clk 0:04:55.9]}
5... Bxd3 {[%clk 0:04:54.3]} 6. Qxd3 {[%clk 0:04:55.8]} 6... Qa5+ {[%clk
0:04:53.5]} 7. Nd2 {[%clk 0:04:52.1]} 7... e6 {[%clk 0:04:50.6]} 8. c4 {[%clk
0:04:51.6]} 8... Ne7 {[%clk 0:04:46.9]} 9. b3 {[%clk 0:04:48.5]} 9... dxc4
{[%clk 0:04:42.7]} 10. Qxc4 {[%clk 0:04:44.9]} 10... Nd5 {[%clk 0:04:38.1]} 11.
Nf3 {[%clk 0:04:43.5]} 11... Bb4 {[%clk 0:04:34.1]} 12. O-O {[%clk 0:04:40.8]}
12... Nd7 {[%clk 0:04:23.7]} 13. a3 {[%clk 0:04:39.2]} 13... Be7 {[%clk
0:04:19.3]} 14. b4 {[%clk 0:04:38]} 14... Qc7 {[%clk 0:04:17.6]} 15. Ne4 {[%clk
0:04:35.6]} 15... N7b6 {[%clk 0:04:15.4]} 16. Qb3 {[%clk 0:04:30.1]} 16... O-O
{[%clk 0:04:13.2]} 17. Nfg5 {[%clk 0:04:19.6]} 17... Rfd8 {[%clk 0:04:01.3]} 18.
Qf3 {[%clk 0:04:14.6]} 18... Bf8 {[%clk 0:03:58.4]} 19. Qxh5 {[%clk 0:04:06.3]}
19... f5 {[%clk 0:03:56.4]} 20. Qh7# {[%clk 0:04:04.1]} 1-0